[Event "*** Titled Tuesday Blitz"]
[Site "Chess.com"]
[Date "2021.03.09"]
[Round "8"]
[White "SlavenPastar"]
[Black "onnoelgersma"]
[Result "0-1"]
[WhiteElo "2527"]
[BlackElo "2404"]
[TimeControl "180+1"]
[EndTime "11:34:15 PST"]
[Termination "onnoelgersma won by checkmate"]

1. b3 {[%clk 0:03:00.9]} 1... d5 {[%clk 0:02:59.2]} 2. Bb2 {[%clk 0:03:01.8]}
2... Nf6 {[%clk 0:02:59.6]} 3. f4 {[%clk 0:02:59.9]} 3... Bg4 {[%clk 0:02:59.3]}
4. Nf3 {[%clk 0:02:59.4]} 4... Bxf3 {[%clk 0:02:58.3]} 5. exf3 {[%clk
0:02:57.7]} 5... e6 {[%clk 0:02:58.5]} 6. Nc3 {[%clk 0:02:53.5]} 6... c5 {[%clk
0:02:56.8]} 7. d4 {[%clk 0:02:51.6]} 7... Nc6 {[%clk 0:02:43.7]} 8. Bb5 {[%clk
0:02:50.8]} 8... Rc8 {[%clk 0:02:38]} 9. f5 {[%clk 0:02:47.5]} 9... exf5 {[%clk
0:02:19.6]} 10. Qd3 {[%clk 0:02:29.2]} 10... cxd4 {[%clk 0:02:03.1]} 11. Ne2
{[%clk 0:02:23.2]} 11... Bb4+ {[%clk 0:01:58.3]} 12. Kf2 {[%clk 0:02:14.2]}
12... O-O {[%clk 0:01:56.3]} 13. Qxf5 {[%clk 0:02:09.5]} 13... Re8 {[%clk
0:01:43.8]} 14. Rhd1 {[%clk 0:01:57.8]} 14... Re5 {[%clk 0:00:40.6]} 15. Qh3
{[%clk 0:01:56.8]} 15... Rh5 {[%clk 0:00:32.1]} 16. Qg3 {[%clk 0:01:52.6]} 16...
Bd6 {[%clk 0:00:31.9]} 17. Nf4 {[%clk 0:01:40.3]} 17... Rf5 {[%clk 0:00:30.6]}
18. Bc1 {[%clk 0:01:29.8]} 18... Qc7 {[%clk 0:00:29.9]} 19. Qh3 {[%clk
0:01:09.8]} 19... Rxf4 {[%clk 0:00:27.1]} 20. Bxf4 {[%clk 0:01:08.8]} 20... Bxf4
{[%clk 0:00:27.6]} 21. g3 {[%clk 0:00:52.7]} 21... Be3+ {[%clk 0:00:25.6]} 22.
Kg2 {[%clk 0:00:53]} 22... Ne5 {[%clk 0:00:21.9]} 23. Bd3 {[%clk 0:00:43.7]}
23... Nxd3 {[%clk 0:00:21.2]} 24. cxd3 {[%clk 0:00:44.6]} 24... Qc2+ {[%clk
0:00:20.3]} 25. Kh1 {[%clk 0:00:44.3]} 25... Re8 {[%clk 0:00:20.2]} 26. Qg2
{[%clk 0:00:41.4]} 26... Qxg2+ {[%clk 0:00:20.1]} 27. Kxg2 {[%clk 0:00:42.3]}
27... Rc8 {[%clk 0:00:19.7]} 28. a4 {[%clk 0:00:28.2]} 28... Rc2+ {[%clk
0:00:19.7]} 29. Kh1 {[%clk 0:00:28.5]} 29... h5 {[%clk 0:00:19.2]} 30. a5 {[%clk
0:00:25.6]} 30... a6 {[%clk 0:00:18]} 31. b4 {[%clk 0:00:24.8]} 31... g5 {[%clk
0:00:18.3]} 32. Rab1 {[%clk 0:00:22]} 32... h4 {[%clk 0:00:17.3]} 33. g4 {[%clk
0:00:18.8]} 33... Bf4 {[%clk 0:00:14.3]} 34. b5 {[%clk 0:00:19]} 34... Rxh2+
{[%clk 0:00:12.6]} 35. Kg1 {[%clk 0:00:19.2]} 35... Ra2 {[%clk 0:00:13]} 36.
bxa6 {[%clk 0:00:18.9]} 36... bxa6 {[%clk 0:00:13.9]} 37. Rb6 {[%clk 0:00:18.5]}
37... Nd7 {[%clk 0:00:10]} 38. Rxa6 {[%clk 0:00:17.2]} 38... Ne5 {[%clk
0:00:10.4]} 39. Rf1 {[%clk 0:00:15.9]} 39... Nxd3 {[%clk 0:00:09.9]} 40. Ra8+
{[%clk 0:00:15.1]} 40... Kg7 {[%clk 0:00:09.8]} 41. a6 {[%clk 0:00:16]} 41...
Ne5 {[%clk 0:00:09.9]} 42. a7 {[%clk 0:00:15.3]} 42... h3 {[%clk 0:00:10.4]} 43.
Kh1 {[%clk 0:00:08.2]} 43... h2 {[%clk 0:00:10.3]} 44. Rd8 {[%clk 0:00:07]}
44... Rxa7 {[%clk 0:00:07.5]} 45. Rxd5 {[%clk 0:00:07.6]} 45... Ra2 {[%clk
0:00:06.9]} 46. Rxd4 {[%clk 0:00:07.3]} 46... Nc6 {[%clk 0:00:05]} 47. Re4
{[%clk 0:00:06.6]} 47... Na5 {[%clk 0:00:04.3]} 48. Rb1 {[%clk 0:00:05.8]} 48...
Nc6 {[%clk 0:00:04]} 49. Rd1 {[%clk 0:00:05.5]} 49... Ne7 {[%clk 0:00:03.8]} 50.
Rxe7 {[%clk 0:00:05.2]} 50... Kf6 {[%clk 0:00:04.3]} 51. Re4 {[%clk 0:00:05.3]}
51... Rf2 {[%clk 0:00:04.9]} 52. Ree1 {[%clk 0:00:04.2]} 52... Rxf3 {[%clk
0:00:05.2]} 53. Rf1 {[%clk 0:00:04.8]} 53... Rxf1+ {[%clk 0:00:05.5]} 54. Rxf1
{[%clk 0:00:04.8]} 54... Ke5 {[%clk 0:00:06]} 55. Kg2 {[%clk 0:00:05.4]} 55...
f6 {[%clk 0:00:05.7]} 56. Re1+ {[%clk 0:00:05.4]} 56... Kd6 {[%clk 0:00:05.6]}
57. Kf3 {[%clk 0:00:05.6]} 57... Kd5 {[%clk 0:00:05.3]} 58. Rd1+ {[%clk
0:00:05.3]} 58... Ke5 {[%clk 0:00:05.5]} 59. Re1+ {[%clk 0:00:05.3]} 59... Kd5
{[%clk 0:00:06]} 60. Rd1+ {[%clk 0:00:06.2]} 60... Ke6 {[%clk 0:00:05.9]} 61.
Ke4 {[%clk 0:00:05.9]} 61... Be5 {[%clk 0:00:06.1]} 62. Rf1 {[%clk 0:00:05.8]}
62... Bf4 {[%clk 0:00:06.1]} 63. Rb1 {[%clk 0:00:06.2]} 63... Be5 {[%clk
0:00:06.3]} 64. Rb6+ {[%clk 0:00:06.7]} 64... Kf7 {[%clk 0:00:06.3]} 65. Rb7+
{[%clk 0:00:07.2]} 65... Kg6 {[%clk 0:00:06.4]} 66. Rb1 {[%clk 0:00:07.8]} 66...
Bf4 {[%clk 0:00:06.4]} 67. Ra1 {[%clk 0:00:07.4]} 67... Be5 {[%clk 0:00:06.9]}
68. Rh1 {[%clk 0:00:07]} 68... Bf4 {[%clk 0:00:06.9]} 69. Rb1 {[%clk 0:00:06.6]}
69... Be5 {[%clk 0:00:07.8]} 70. Rf1 {[%clk 0:00:06.5]} 70... Bf4 {[%clk
0:00:08.1]} 71. Kf3 {[%clk 0:00:05.4]} 71... f5 {[%clk 0:00:07.7]} 72. Rh1
{[%clk 0:00:05.4]} 72... Kf6 {[%clk 0:00:07.6]} 73. Rd1 {[%clk 0:00:04.9]} 73...
Ke5 {[%clk 0:00:07.1]} 74. Re1+ {[%clk 0:00:04.5]} 74... Kf6 {[%clk 0:00:07.2]}
75. Ra1 {[%clk 0:00:05.4]} 75... fxg4+ {[%clk 0:00:07.1]} 76. Kxg4 {[%clk
0:00:05.5]} 76... Ke5 {[%clk 0:00:07.7]} 77. Ra5+ {[%clk 0:00:05]} 77... Ke4
{[%clk 0:00:07.6]} 78. Ra1 {[%clk 0:00:04.6]} 78... Ke3 {[%clk 0:00:07.8]} 79.
Kh3 {[%clk 0:00:05]} 79... Kf2 {[%clk 0:00:07.9]} 80. Ra2+ {[%clk 0:00:03.5]}
80... Kf3 {[%clk 0:00:08.1]} 81. Ra3+ {[%clk 0:00:03.5]} 81... Ke4 {[%clk
0:00:08.5]} 82. Ra4+ {[%clk 0:00:03.5]} 82... Kf5 {[%clk 0:00:08.8]} 83. Ra2
{[%clk 0:00:04.4]} 83... g4+ {[%clk 0:00:09]} 84. Kg2 {[%clk 0:00:03.9]} 84...
g3 {[%clk 0:00:09.2]} 85. Ra5+ {[%clk 0:00:04.3]} 85... Kg4 {[%clk 0:00:09.6]}
86. Ra4 {[%clk 0:00:04.8]} 86... Kf5 {[%clk 0:00:09.2]} 87. Ra1 {[%clk
0:00:05.1]} 87... Kg4 {[%clk 0:00:09.3]} 88. Rf1 {[%clk 0:00:05.7]} 88... Be5
{[%clk 0:00:08.2]} 89. Rh1 {[%clk 0:00:06]} 89... Bf4 {[%clk 0:00:08.3]} 90. Rf1
{[%clk 0:00:06.4]} 90... Be5 {[%clk 0:00:08.3]} 91. Rd1 {[%clk 0:00:06.9]} 91...
Bf4 {[%clk 0:00:08.6]} 92. Rd8 {[%clk 0:00:07]} 92... Kf5 {[%clk 0:00:08.9]} 93.
Rg8 {[%clk 0:00:06.8]} 93... Ke4 {[%clk 0:00:08.8]} 94. Rf8 {[%clk 0:00:07.3]}
94... Ke3 {[%clk 0:00:08.7]} 95. Re8+ {[%clk 0:00:07.9]} 95... Kd4 {[%clk
0:00:09.1]} 96. Rh8 {[%clk 0:00:08.3]} 96... Ke3 {[%clk 0:00:09.2]} 97. Rh4
{[%clk 0:00:08.8]} 97... Ke4 {[%clk 0:00:09.3]} 98. Kf1 {[%clk 0:00:08.6]} 98...
Kf3 {[%clk 0:00:08.9]} 99. Rh3 {[%clk 0:00:08.3]} 99... Kg4 {[%clk 0:00:08.1]}
100. Rh8 {[%clk 0:00:08.9]} 100... Kf3 {[%clk 0:00:08.3]} 101. Rh3 {[%clk
0:00:09]} 101... Bg5 {[%clk 0:00:08.5]} 102. Rh5 {[%clk 0:00:08.4]} 102... g2+
{[%clk 0:00:08.4]} 103. Ke1 {[%clk 0:00:08.1]} 103... g1=Q# {[%clk 0:00:09.3]}
0-1

[Event "*** Titled Tuesday Blitz"]
[Site "Chess.com"]
[Date "2021.03.09"]
[Round "8"]
[White "TimofeevAr"]
[Black "Aradhya2000"]
[Result "1/2-1/2"]
[WhiteElo "2876"]
[BlackElo "2578"]
[TimeControl "180+1"]
[EndTime "11:34:23 PST"]
[Termination "Game drawn by stalemate"]

1. c4 {[%clk 0:03:00.9]} 1... e5 {[%clk 0:02:59.8]} 2. e3 {[%clk 0:03:00.5]}
2... Nf6 {[%clk 0:02:58.4]} 3. Nc3 {[%clk 0:03:00.2]} 3... Nc6 {[%clk
0:02:57.8]} 4. d3 {[%clk 0:02:59.4]} 4... g6 {[%clk 0:02:51]} 5. Nf3 {[%clk
0:02:58.7]} 5... Bg7 {[%clk 0:02:51.1]} 6. Be2 {[%clk 0:02:58.8]} 6... O-O
{[%clk 0:02:51.7]} 7. O-O {[%clk 0:02:58.7]} 7... d5 {[%clk 0:02:51.9]} 8. cxd5
{[%clk 0:02:58.7]} 8... Nxd5 {[%clk 0:02:52.8]} 9. Bd2 {[%clk 0:02:59.1]} 9...
Nxc3 {[%clk 0:02:41.2]} 10. Bxc3 {[%clk 0:02:59]} 10... a5 {[%clk 0:02:40.8]}
11. Rc1 {[%clk 0:02:42.2]} 11... Be6 {[%clk 0:02:40]} 12. a3 {[%clk 0:02:42]}
12... h6 {[%clk 0:02:15.1]} 13. Nd2 {[%clk 0:02:40.8]} 13... Qe7 {[%clk
0:02:08.9]} 14. Qa4 {[%clk 0:02:35.6]} 14... Rfd8 {[%clk 0:01:56.9]} 15. Rfd1
{[%clk 0:02:33.5]} 15... Kh7 {[%clk 0:01:45.9]} 16. Qc2 {[%clk 0:02:12.4]} 16...
Rd7 {[%clk 0:01:41.4]} 17. Bf3 {[%clk 0:02:11.6]} 17... Bd5 {[%clk 0:01:41.1]}
18. Bxd5 {[%clk 0:02:09.7]} 18... Rxd5 {[%clk 0:01:41]} 19. Qb3 {[%clk
0:02:03.4]} 19... Qd7 {[%clk 0:01:35.8]} 20. Nf3 {[%clk 0:01:38.4]} 20... a4
{[%clk 0:01:16.6]} 21. Qc2 {[%clk 0:01:36.7]} 21... Rd8 {[%clk 0:00:18]} 22.
Qxa4 {[%clk 0:01:36.4]} 22... Rxd3 {[%clk 0:00:18.1]} 23. Rxd3 {[%clk
0:01:36.8]} 23... Qxd3 {[%clk 0:00:19]} 24. h3 {[%clk 0:01:35.4]} 24... Rd5
{[%clk 0:00:17.8]} 25. e4 {[%clk 0:01:27.2]} 25... Qb5 {[%clk 0:00:16.9]} 26.
Qc2 {[%clk 0:01:25]} 26... Rd7 {[%clk 0:00:16.3]} 27. b4 {[%clk 0:01:23.8]}
27... Nd4 {[%clk 0:00:16.3]} 28. Bxd4 {[%clk 0:01:18.4]} 28... exd4 {[%clk
0:00:17.2]} 29. Qc4 {[%clk 0:01:17.2]} 29... Qa4 {[%clk 0:00:17.4]} 30. Qd3
{[%clk 0:01:16.9]} 30... b6 {[%clk 0:00:14.5]} 31. e5 {[%clk 0:01:13.9]} 31...
Qa8 {[%clk 0:00:13.6]} 32. e6 {[%clk 0:01:05.7]} 32... Re7 {[%clk 0:00:12.9]}
33. exf7 {[%clk 0:01:03.4]} 33... Rxf7 {[%clk 0:00:13.3]} 34. Nh4 {[%clk
0:01:03.1]} 34... Rf6 {[%clk 0:00:12.3]} 35. Rxc7 {[%clk 0:01:01.9]} 35... Qf8
{[%clk 0:00:12.2]} 36. Nf3 {[%clk 0:00:58.6]} 36... Rf4 {[%clk 0:00:11.5]} 37.
Rd7 {[%clk 0:00:57.1]} 37... Qf6 {[%clk 0:00:11.3]} 38. a4 {[%clk 0:00:50.7]}
38... Qc6 {[%clk 0:00:11]} 39. Qb5 {[%clk 0:00:46.8]} 39... Qxb5 {[%clk
0:00:10]} 40. axb5 {[%clk 0:00:46.7]} 40... d3 {[%clk 0:00:10.7]} 41. Rxd3
{[%clk 0:00:46.5]} 41... Rxb4 {[%clk 0:00:10.9]} 42. Rd5 {[%clk 0:00:47.2]}
42... Kg8 {[%clk 0:00:10.4]} 43. Kf1 {[%clk 0:00:41.8]} 43... Kf7 {[%clk
0:00:10.5]} 44. Rd7+ {[%clk 0:00:27.4]} 44... Kf8 {[%clk 0:00:09.8]} 45. Rd6
{[%clk 0:00:27.1]} 45... Rxb5 {[%clk 0:00:10]} 46. Rxg6 {[%clk 0:00:27.4]} 46...
Rb1+ {[%clk 0:00:10.2]} 47. Ke2 {[%clk 0:00:27.7]} 47... Rb2+ {[%clk 0:00:10.7]}
48. Ke3 {[%clk 0:00:27]} 48... Rb3+ {[%clk 0:00:11.1]} 49. Kf4 {[%clk
0:00:26.4]} 49... Rb2 {[%clk 0:00:11.5]} 50. Kg3 {[%clk 0:00:24.8]} 50... b5
{[%clk 0:00:10.2]} 51. Rb6 {[%clk 0:00:24.9]} 51... b4 {[%clk 0:00:10.6]} 52.
Ne1 {[%clk 0:00:21.8]} 52... Bd4 {[%clk 0:00:08.3]} 53. Rb8+ {[%clk 0:00:21.6]}
53... Kf7 {[%clk 0:00:08.2]} 54. Nf3 {[%clk 0:00:20.3]} 54... Bxf2+ {[%clk
0:00:06.1]} 55. Kf4 {[%clk 0:00:20.6]} 55... Bc5 {[%clk 0:00:05.6]} 56. Ke4
{[%clk 0:00:20.1]} 56... Ke6 {[%clk 0:00:05.6]} 57. g4 {[%clk 0:00:18.9]} 57...
Re2+ {[%clk 0:00:03]} 58. Kd3 {[%clk 0:00:19.2]} 58... Re3+ {[%clk 0:00:02.5]}
59. Kc4 {[%clk 0:00:19.9]} 59... Rxf3 {[%clk 0:00:03.4]} 60. Kxc5 {[%clk
0:00:20.4]} 60... Rxh3 {[%clk 0:00:04.2]} 61. Rxb4 {[%clk 0:00:20.2]} 61... Kf6
{[%clk 0:00:04.6]} 62. Rf4+ {[%clk 0:00:19.8]} 62... Kg5 {[%clk 0:00:04.6]} 63.
Rb4 {[%clk 0:00:20.4]} 63... Rg3 {[%clk 0:00:04.8]} 64. Kd5 {[%clk 0:00:19]}
64... Rxg4 {[%clk 0:00:05.2]} 65. Rb8 {[%clk 0:00:19.6]} 65... h5 {[%clk
0:00:05]} 66. Rh8 {[%clk 0:00:16.6]} 66... h4 {[%clk 0:00:04.1]} 67. Ke5 {[%clk
0:00:17]} 67... Rg3 {[%clk 0:00:04.5]} 68. Ke4 {[%clk 0:00:17.3]} 68... Kg4
{[%clk 0:00:04.8]} 69. Rh7 {[%clk 0:00:17.1]} 69... Kh3 {[%clk 0:00:04.3]} 70.
Kf4 {[%clk 0:00:17.2]} 70... Rg1 {[%clk 0:00:04]} 71. Kf3 {[%clk 0:00:16.8]}
71... Rg8 {[%clk 0:00:04.7]} 72. Kf2 {[%clk 0:00:16.6]} 72... Rf8+ {[%clk
0:00:05]} 73. Kg1 {[%clk 0:00:16.9]} 73... Ra8 {[%clk 0:00:05.7]} 74. Kf2 {[%clk
0:00:16.4]} 74... Ra1 {[%clk 0:00:06.6]} 75. Kf3 {[%clk 0:00:16.8]} 75... Ra2
{[%clk 0:00:06.5]} 76. Rh8 {[%clk 0:00:15.9]} 76... Ra4 {[%clk 0:00:06.6]} 77.
Kf2 {[%clk 0:00:16.1]} 77... Kh2 {[%clk 0:00:07.1]} 78. Kf3 {[%clk 0:00:16.3]}
78... h3 {[%clk 0:00:07.7]} 79. Rh7 {[%clk 0:00:16]} 79... Ra3+ {[%clk
0:00:07.9]} 80. Kf2 {[%clk 0:00:16.2]} 80... Ra2+ {[%clk 0:00:08.5]} 81. Kf3
{[%clk 0:00:16.5]} 81... Rb2 {[%clk 0:00:07.8]} 82. Rh8 {[%clk 0:00:16.1]} 82...
Rc2 {[%clk 0:00:08.2]} 83. Rh7 {[%clk 0:00:15.7]} 83... Rc3+ {[%clk 0:00:08.5]}
84. Kf2 {[%clk 0:00:16]} 84... Rc1 {[%clk 0:00:09]} 85. Rh8 {[%clk 0:00:15.5]}
85... Rc2+ {[%clk 0:00:09.3]} 86. Kf3 {[%clk 0:00:15.5]} 86... Rb2 {[%clk
0:00:09.6]} 87. Rh7 {[%clk 0:00:15.3]} 87... Rb1 {[%clk 0:00:10]} 88. Kf2 {[%clk
0:00:14.9]} 88... Rb3 {[%clk 0:00:09.6]} 89. Rh8 {[%clk 0:00:14.7]} 89... Rb6
{[%clk 0:00:09.2]} 90. Rf8 {[%clk 0:00:13.2]} 90... Rg6 {[%clk 0:00:08.7]} 91.
Rf7 {[%clk 0:00:12.2]} 91... Rg2+ {[%clk 0:00:08.8]} 92. Kf1 {[%clk 0:00:12.7]}
92... Kh1 {[%clk 0:00:09.2]} 93. Rh7 {[%clk 0:00:11.3]} 93... h2 {[%clk
0:00:09.5]} 94. Rf7 {[%clk 0:00:04.8]} 94... Rg6 {[%clk 0:00:09.4]} 95. Kf2
{[%clk 0:00:05]} 95... Ra6 {[%clk 0:00:08.8]} 96. Kf1 {[%clk 0:00:05.2]} 96...
Ra2 {[%clk 0:00:08.8]} 97. Rf6 {[%clk 0:00:04.6]} 97... Ra1+ {[%clk 0:00:09.1]}
98. Kf2 {[%clk 0:00:05]} 98... Ra2+ {[%clk 0:00:09.6]} 99. Kf1 {[%clk 0:00:05]}
99... Ra1+ {[%clk 0:00:10]} 100. Kf2 {[%clk 0:00:05.5]} 100... Rf1+ {[%clk
0:00:10.6]} 101. Kxf1 {[%clk 0:00:05.5]} 1/2-1/2

[Event "*** Titled Tuesday Blitz"]
[Site "Chess.com"]
[Date "2021.03.09"]
[Round "9"]
[White "tusplingher"]
[Black "maximnovik"]
[Result "0-1"]
[WhiteElo "2327"]
[BlackElo "2554"]
[TimeControl "180+1"]
[EndTime "11:44:23 PST"]
[Termination "maximnovik won by resignation"]

1. e4 {[%clk 0:03:00.9]} 1... c6 {[%clk 0:02:59.5]} 2. Nc3 {[%clk 0:02:59.8]}
2... d5 {[%clk 0:03:00.4]} 3. Nf3 {[%clk 0:02:59.6]} 3... dxe4 {[%clk
0:03:00.3]} 4. Nxe4 {[%clk 0:02:59.3]} 4... Nf6 {[%clk 0:03:00.9]} 5. Qe2 {[%clk
0:02:56.9]} 5... Nxe4 {[%clk 0:02:58.8]} 6. Qxe4 {[%clk 0:02:56.8]} 6... Qd5
{[%clk 0:02:58.8]} 7. Qxd5 {[%clk 0:02:55.2]} 7... cxd5 {[%clk 0:02:58.1]} 8. d4
{[%clk 0:02:55.9]} 8... Nc6 {[%clk 0:02:58]} 9. c3 {[%clk 0:02:55.9]} 9... Bg4
{[%clk 0:02:56.5]} 10. Bb5 {[%clk 0:02:53.8]} 10... Bxf3 {[%clk 0:02:55.3]} 11.
gxf3 {[%clk 0:02:54]} 11... e6 {[%clk 0:02:54.8]} 12. Bf4 {[%clk 0:02:53.2]}
12... Rc8 {[%clk 0:02:46.9]} 13. Rg1 {[%clk 0:02:50.6]} 13... a6 {[%clk
0:02:46.7]} 14. Bxc6+ {[%clk 0:02:42.9]} 14... Rxc6 {[%clk 0:02:46]} 15. O-O-O
{[%clk 0:02:42.7]} 15... g6 {[%clk 0:02:43.3]} 16. Be5 {[%clk 0:02:42.4]} 16...
Rg8 {[%clk 0:02:42.6]} 17. f4 {[%clk 0:02:39.5]} 17... Be7 {[%clk 0:02:38.8]}
18. Rde1 {[%clk 0:02:38.9]} 18... f6 {[%clk 0:02:30]} 19. Bb8 {[%clk 0:02:36.9]}
19... Kd7 {[%clk 0:02:28.3]} 20. Ba7 {[%clk 0:02:36.9]} 20... b6 {[%clk
0:02:28]} 21. f5 {[%clk 0:02:35.9]} 21... exf5 {[%clk 0:02:24.3]} 22. Rg3 {[%clk
0:02:29.9]} 22... Bd6 {[%clk 0:02:18.2]} 23. Rh3 {[%clk 0:02:28.7]} 23... h5
{[%clk 0:02:13.2]} 24. Rg1 {[%clk 0:02:28.1]} 24... Kc7 {[%clk 0:01:36.9]} 25.
Rxh5 {[%clk 0:02:05.8]} 25... Kb7 {[%clk 0:01:36.5]} 26. Rh7+ {[%clk 0:02:04.9]}
26... Rc7 {[%clk 0:01:28.7]} 27. Rh6 {[%clk 0:02:03.5]} 27... Bf4+ {[%clk
0:01:25]} 0-1

[Event "*** Titled Tuesday Blitz"]
[Site "Chess.com"]
[Date "2021.03.09"]
[Round "9"]
[White "urutodo"]
[Black "lacafi"]
[Result "1-0"]
[WhiteElo "2317"]
[BlackElo "2156"]
[TimeControl "180+1"]
[EndTime "11:44:27 PST"]
[Termination "urutodo won by resignation"]

1. e4 {[%clk 0:03:00.9]} 1... c6 {[%clk 0:02:14.6]} 2. d4 {[%clk 0:03:00]} 2...
d5 {[%clk 0:02:12.4]} 3. Nc3 {[%clk 0:03:00.5]} 3... dxe4 {[%clk 0:02:12.4]} 4.
Nxe4 {[%clk 0:03:01.4]} 4... Nf6 {[%clk 0:02:13.1]} 5. Nxf6+ {[%clk 0:03:01.4]}
5... exf6 {[%clk 0:02:14]} 6. Nf3 {[%clk 0:03:01.6]} 6... Bd6 {[%clk 0:02:14]}
7. Be2 {[%clk 0:03:01.9]} 7... O-O {[%clk 0:02:14.5]} 8. O-O {[%clk 0:03:02.4]}
8... Re8 {[%clk 0:02:15.1]} 9. Re1 {[%clk 0:03:01.8]} 9... Nd7 {[%clk
0:02:14.7]} 10. Bd2 {[%clk 0:02:59.8]} 10... Nf8 {[%clk 0:02:14.8]} 11. Bf1
{[%clk 0:02:57.7]} 11... Bg4 {[%clk 0:02:14.5]} 12. Rxe8 {[%clk 0:02:55.5]}
12... Qxe8 {[%clk 0:02:14.4]} 13. h3 {[%clk 0:02:53.4]} 13... Bh5 {[%clk
0:02:13.5]} 14. c3 {[%clk 0:02:43.4]} 14... Qd7 {[%clk 0:02:13.1]} 15. Be2
{[%clk 0:02:20]} 15... Re8 {[%clk 0:02:12.6]} 16. Be3 {[%clk 0:02:20.2]} 16...
Ne6 {[%clk 0:02:07.8]} 17. Nh4 {[%clk 0:02:13.7]} 17... Bxe2 {[%clk 0:02:06.5]}
18. Qxe2 {[%clk 0:02:14]} 18... Nf4 {[%clk 0:01:48.3]} 19. Qf3 {[%clk
0:02:11.6]} 19... Nd5 {[%clk 0:01:45.3]} 20. Nf5 {[%clk 0:02:10.4]} 20... Bf8
{[%clk 0:01:19.1]} 21. Qg4 {[%clk 0:02:04.7]} 21... g6 {[%clk 0:01:13.2]} 22.
Nh6+ {[%clk 0:02:03.6]} 1-0

[Event "*** Titled Tuesday Blitz"]
[Site "Chess.com"]
[Date "2021.03.09"]
[Round "9"]
[White "beautroll"]
[Black "samidescalona2002"]
[Result "1-0"]
[WhiteElo "2447"]
[BlackElo "2280"]
[TimeControl "180+1"]
[EndTime "11:44:29 PST"]
[Termination "beautroll won by resignation"]

1. e4 {[%clk 0:03:00.9]} 1... c5 {[%clk 0:02:59.3]} 2. Nf3 {[%clk 0:03:00.5]}
2... d6 {[%clk 0:02:58.8]} 3. d4 {[%clk 0:03:00.6]} 3... cxd4 {[%clk 0:02:58.1]}
4. Nxd4 {[%clk 0:03:01.5]} 4... Nf6 {[%clk 0:02:57]} 5. Nc3 {[%clk 0:03:01.6]}
5... a6 {[%clk 0:02:57.9]} 6. h3 {[%clk 0:03:01.5]} 6... e5 {[%clk 0:02:57]} 7.
Nde2 {[%clk 0:03:00.6]} 7... h5 {[%clk 0:02:57.9]} 8. Bg5 {[%clk 0:02:59.9]}
8... Be7 {[%clk 0:02:55.4]} 9. Ng3 {[%clk 0:02:53.3]} 9... g6 {[%clk 0:02:53.2]}
10. Bc4 {[%clk 0:02:36.8]} 10... h4 {[%clk 0:02:50.6]} 11. Nge2 {[%clk
0:02:35.1]} 11... Nbd7 {[%clk 0:02:28.9]} 12. Qd2 {[%clk 0:02:18.6]} 12... b5
{[%clk 0:02:25.5]} 13. Bb3 {[%clk 0:02:14.3]} 13... Bb7 {[%clk 0:02:21.3]} 14.
f3 {[%clk 0:02:12]} 14... Rc8 {[%clk 0:02:11.4]} 15. a3 {[%clk 0:02:06.9]} 15...
Nb6 {[%clk 0:02:08]} 16. O-O {[%clk 0:02:01.6]} 16... Nc4 {[%clk 0:02:05.6]} 17.
Bxc4 {[%clk 0:01:55.8]} 17... Rxc4 {[%clk 0:02:06.5]} 18. Rad1 {[%clk
0:01:51.3]} 18... Rc8 {[%clk 0:01:44.1]} 19. Bxf6 {[%clk 0:01:45.9]} 19... Bxf6
{[%clk 0:01:45]} 20. Qxd6 {[%clk 0:01:45.3]} 20... Qxd6 {[%clk 0:01:45.9]} 21.
Rxd6 {[%clk 0:01:45.3]} 21... Be7 {[%clk 0:01:42.7]} 22. Rd3 {[%clk 0:01:45]}
22... Bc5+ {[%clk 0:01:41.9]} 23. Kh2 {[%clk 0:01:44.8]} 23... Bb6 {[%clk
0:01:40.6]} 24. Rfd1 {[%clk 0:01:43.5]} 24... Ke7 {[%clk 0:01:40.5]} 25. Rd7+
{[%clk 0:01:41.4]} 1-0

[Event "*** Titled Tuesday Blitz"]
[Site "Chess.com"]
[Date "2021.03.09"]
[Round "9"]
[White "JimmmyZhang"]
[Black "Vugar_Manafov"]
[Result "1-0"]
[WhiteElo "2484"]
[BlackElo "2667"]
[TimeControl "180+1"]
[EndTime "11:44:52 PST"]
[Termination "JimmmyZhang won by resignation"]

1. Nf3 {[%clk 0:02:59.2]} 1... Nf6 {[%clk 0:02:57.2]} 2. c4 {[%clk 0:02:53.5]}
2... e6 {[%clk 0:02:56.2]} 3. b3 {[%clk 0:02:53.3]} 3... d5 {[%clk 0:02:55.6]}
4. Bb2 {[%clk 0:02:53.2]} 4... Nbd7 {[%clk 0:02:55.8]} 5. e3 {[%clk 0:02:52.3]}
5... c6 {[%clk 0:02:55.5]} 6. d4 {[%clk 0:02:48]} 6... Ne4 {[%clk 0:02:54.4]} 7.
Bd3 {[%clk 0:02:47.3]} 7... f5 {[%clk 0:02:52.5]} 8. Nc3 {[%clk 0:02:44.9]} 8...
Bd6 {[%clk 0:02:45.7]} 9. O-O {[%clk 0:02:43.5]} 9... O-O {[%clk 0:02:44]} 10.
Ne2 {[%clk 0:02:38.6]} 10... Rf6 {[%clk 0:02:40.7]} 11. Ne5 {[%clk 0:02:34.8]}
11... Rh6 {[%clk 0:02:33.9]} 12. f4 {[%clk 0:02:32.2]} 12... Ndf6 {[%clk
0:02:22]} 13. h3 {[%clk 0:02:24.2]} 13... Bxe5 {[%clk 0:02:09.1]} 14. dxe5
{[%clk 0:02:18.3]} 14... Nd7 {[%clk 0:02:03.5]} 15. Bxe4 {[%clk 0:02:17]} 15...
fxe4 {[%clk 0:02:04.3]} 16. cxd5 {[%clk 0:02:11.9]} 16... cxd5 {[%clk
0:01:54.5]} 17. Rc1 {[%clk 0:02:11.3]} 17... Nb6 {[%clk 0:01:49.5]} 18. a4
{[%clk 0:02:07.4]} 18... Bd7 {[%clk 0:01:48.3]} 19. a5 {[%clk 0:02:06.7]} 19...
Nc8 {[%clk 0:01:48.4]} 20. f5 {[%clk 0:01:59.1]} 20... Ne7 {[%clk 0:01:31]} 21.
f6 {[%clk 0:01:54.8]} 21... Nf5 {[%clk 0:01:30.5]} 22. Rxf5 {[%clk 0:01:50]}
22... exf5 {[%clk 0:01:29.1]} 23. Qxd5+ {[%clk 0:01:49.2]} 23... Kh8 {[%clk
0:01:23.7]} 24. fxg7+ {[%clk 0:01:48.5]} 24... Kxg7 {[%clk 0:01:24.5]} 25. e6+
{[%clk 0:01:48.6]} 25... Kf8 {[%clk 0:01:23.8]} 26. exd7 {[%clk 0:01:47.1]}
26... Qe7 {[%clk 0:01:21.6]} 27. Rc8+ {[%clk 0:01:42.3]} 1-0